[Event "Betsys MČR v online bleskovém šachu 2021"]
[Site "Chess.com"]
[Date "2021.04.17"]
[Round "7"]
[White "matykov"]
[Black "horvi1"]
[Result "0-1"]
[WhiteElo "2009"]
[BlackElo "2237"]
[TimeControl "180+1"]
[EndTime "10:10:45 PDT"]
[Termination "Uživatel horvi1 zvítězil po vzdání soupeře"]

1. e4 {[%clk 0:03:00.9]} 1... e5 {[%clk 0:02:57.6]} 2. Nf3 {[%clk 0:02:58.1]}
2... Nc6 {[%clk 0:02:55.9]} 3. Nc3 {[%clk 0:02:57.6]} 3... Nf6 {[%clk
0:02:55.7]} 4. d4 {[%clk 0:02:57.8]} 4... exd4 {[%clk 0:02:55.8]} 5. Nxd4 {[%clk
0:02:58.7]} 5... Bb4 {[%clk 0:02:54.7]} 6. Nxc6 {[%clk 0:02:58.5]} 6... bxc6
{[%clk 0:02:54.9]} 7. Bd3 {[%clk 0:02:58.8]} 7... d5 {[%clk 0:02:55.2]} 8. exd5
{[%clk 0:02:59.3]} 8... cxd5 {[%clk 0:02:54.9]} 9. O-O {[%clk 0:02:59.9]} 9...
O-O {[%clk 0:02:52.3]} 10. Bg5 {[%clk 0:03:00]} 10... c6 {[%clk 0:02:50.8]} 11.
Qf3 {[%clk 0:03:00]} 11... Be7 {[%clk 0:02:41.7]} 12. h3 {[%clk 0:02:59.7]}
12... h6 {[%clk 0:02:37.2]} 13. Bf4 {[%clk 0:02:47]} 13... Bb7 {[%clk
0:02:34.1]} 14. Rfe1 {[%clk 0:02:24.1]} 14... c5 {[%clk 0:02:29.4]} 15. Qe2
{[%clk 0:02:02.2]} 15... Bd6 {[%clk 0:02:10.2]} 16. Bxd6 {[%clk 0:01:59]} 16...
Qxd6 {[%clk 0:02:09.7]} 17. Qe7 {[%clk 0:01:52.8]} 17... Qc6 {[%clk 0:01:40.5]}
18. Qe5 {[%clk 0:00:55.1]} 18... Rfe8 {[%clk 0:01:36.1]} 19. Qg3 {[%clk
0:00:54.1]} 19... d4 {[%clk 0:01:31.7]} 20. Ne2 {[%clk 0:00:52.3]} 20... c4
{[%clk 0:01:01.5]} 21. Bf5 {[%clk 0:00:21.5]} 21... Qc5 {[%clk 0:00:53.3]} 22.
Nf4 {[%clk 0:00:20.5]} 22... Qxf5 {[%clk 0:00:49.7]} 23. Rxe8+ {[%clk
0:00:13.9]} 23... Rxe8 {[%clk 0:00:49.1]} 0-1

[Event "Betsys MČR v online bleskovém šachu 2021"]
[Site "Chess.com"]
[Date "2021.04.17"]
[Round "7"]
[White "PremetFugas"]
[Black "avsokol"]
[Result "0-1"]
[WhiteElo "2128"]
[BlackElo "2381"]
[TimeControl "180+1"]
[EndTime "10:10:47 PDT"]
[Termination "Uživatel avsokol zvítězil na čas"]

1. e4 {[%clk 0:02:55.3]} 1... c5 {[%clk 0:02:58.3]} 2. Nf3 {[%clk 0:02:54.2]}
2... d6 {[%clk 0:02:58.5]} 3. c3 {[%clk 0:02:52.8]} 3... Nf6 {[%clk 0:02:57.9]}
4. h3 {[%clk 0:02:52.3]} 4... g6 {[%clk 0:02:57.7]} 5. Bd3 {[%clk 0:02:50.7]}
5... Bg7 {[%clk 0:02:57.8]} 6. O-O {[%clk 0:02:49.3]} 6... O-O {[%clk
0:02:58.1]} 7. Bc2 {[%clk 0:02:49.1]} 7... Nc6 {[%clk 0:02:57.7]} 8. a3 {[%clk
0:02:45.4]} 8... e5 {[%clk 0:02:54.8]} 9. d4 {[%clk 0:02:37.9]} 9... exd4 {[%clk
0:02:52.3]} 10. cxd4 {[%clk 0:02:37.7]} 10... Re8 {[%clk 0:02:52.8]} 11. d5
{[%clk 0:02:12.9]} 11... Nd4 {[%clk 0:02:49.1]} 12. Nxd4 {[%clk 0:01:48.9]}
12... cxd4 {[%clk 0:02:48.7]} 13. Re1 {[%clk 0:01:39.3]} 13... Qb6 {[%clk
0:02:34.3]} 14. b4 {[%clk 0:01:35.4]} 14... d3 {[%clk 0:02:23.3]} 15. Qxd3
{[%clk 0:01:28]} 15... Ng4 {[%clk 0:02:01.8]} 16. hxg4 {[%clk 0:00:59.5]} 16...
Bxa1 {[%clk 0:01:59.7]} 17. Nc3 {[%clk 0:00:54.1]} 17... Qc7 {[%clk 0:01:51.5]}
18. Nb5 {[%clk 0:00:51.1]} 18... Qe7 {[%clk 0:01:50.3]} 19. Be3 {[%clk
0:00:41.9]} 19... Bg7 {[%clk 0:01:45.3]} 20. Nxa7 {[%clk 0:00:35.9]} 20... Bxg4
{[%clk 0:01:43.9]} 21. Nb5 {[%clk 0:00:34]} 21... Rec8 {[%clk 0:01:36.9]} 22. f3
{[%clk 0:00:28.7]} 22... Bd7 {[%clk 0:01:35.4]} 23. Nd4 {[%clk 0:00:25.3]} 23...
Qh4 {[%clk 0:01:08.7]} 24. Bf2 {[%clk 0:00:21.9]} 24... Qg5 {[%clk 0:01:08.5]}
25. Be3 {[%clk 0:00:20.4]} 25... Qf6 {[%clk 0:01:08.4]} 26. Ne2 {[%clk
0:00:16.4]} 26... Qb2 {[%clk 0:01:04.9]} 0-1

[Event "Betsys MČR v online bleskovém šachu 2021"]
[Site "Chess.com"]
[Date "2021.04.17"]
[Round "7"]
[White "DenryS"]
[Black "VeceraP1973"]
[Result "1-0"]
[WhiteElo "2109"]
[BlackElo "1917"]
[TimeControl "180+1"]
[EndTime "10:10:51 PDT"]
[Termination "Uživatel DenryS zvítězil po vzdání soupeře"]

1. d4 {[%clk 0:03:00.9]} 1... Nf6 {[%clk 0:02:58.7]} 2. Nf3 {[%clk 0:03:00.9]}
2... e6 {[%clk 0:02:57.8]} 3. Bf4 {[%clk 0:03:00.1]} 3... d5 {[%clk 0:02:56.5]}
4. e3 {[%clk 0:03:00.3]} 4... Be7 {[%clk 0:02:56.5]} 5. Bd3 {[%clk 0:02:59.6]}
5... O-O {[%clk 0:02:56]} 6. Nbd2 {[%clk 0:03:00.2]} 6... c5 {[%clk 0:02:55.3]}
7. c3 {[%clk 0:03:00.1]} 7... Nc6 {[%clk 0:02:54.5]} 8. Ne5 {[%clk 0:03:00.8]}
8... g6 {[%clk 0:02:51.4]} 9. h4 {[%clk 0:03:00]} 9... Nh5 {[%clk 0:02:48.5]}
10. Bh6 {[%clk 0:02:53.8]} 10... Re8 {[%clk 0:02:44.3]} 11. g4 {[%clk
0:02:49.7]} 11... Nxe5 {[%clk 0:02:39]} 12. dxe5 {[%clk 0:02:47.7]} 12... Ng7
{[%clk 0:02:38.1]} 13. Nf3 {[%clk 0:02:32.9]} 13... a6 {[%clk 0:02:19.8]} 14.
Ng5 {[%clk 0:02:31.9]} 14... f6 {[%clk 0:02:08.4]} 15. exf6 {[%clk 0:02:17.6]}
15... Bxf6 {[%clk 0:02:07.7]} 16. Qc2 {[%clk 0:02:13.3]} 16... Bxg5 {[%clk
0:01:45.6]} 17. Bxg5 {[%clk 0:02:09.6]} 17... Qd7 {[%clk 0:01:43.6]} 18. h5
{[%clk 0:02:05.5]} 18... gxh5 {[%clk 0:01:37.8]} 19. Bxh7+ {[%clk 0:02:03.6]}
19... Kh8 {[%clk 0:01:38]} 20. Bg6 {[%clk 0:01:57]} 20... e5 {[%clk 0:01:31.8]}
21. Bf6 {[%clk 0:01:45.5]} 21... Kg8 {[%clk 0:01:18.1]} 22. Bxg7 {[%clk
0:01:39.7]} 22... Qxg7 {[%clk 0:01:17]} 23. Bxe8 {[%clk 0:01:38.9]} 23... Bxg4
{[%clk 0:01:16.5]} 24. Bg6 {[%clk 0:01:20.6]} 24... e4 {[%clk 0:01:12.4]} 25.
Bxh5 {[%clk 0:01:09.5]} 25... Bxh5 {[%clk 0:01:11.2]} 26. Kd2 {[%clk 0:01:07.7]}
26... Qf7 {[%clk 0:01:00.2]} 27. Rag1+ {[%clk 0:01:05.8]} 27... Kf8 {[%clk
0:01:00.1]} 28. Kc1 {[%clk 0:01:01.7]} 28... Re8 {[%clk 0:00:53.4]} 29. Qb3
{[%clk 0:01:01]} 29... b5 {[%clk 0:00:50.9]} 30. Qa3 {[%clk 0:00:58.5]} 30...
Rc8 {[%clk 0:00:35]} 31. Qxa6 {[%clk 0:00:55.3]} 31... Rc7 {[%clk 0:00:29.3]}
32. Qh6+ {[%clk 0:00:54.5]} 32... Ke8 {[%clk 0:00:26.3]} 33. Qxh5 {[%clk
0:00:53.6]} 1-0

[Event "Betsys MČR v online bleskovém šachu 2021"]
[Site "Chess.com"]
[Date "2021.04.17"]
[Round "7"]
[White "MartinHollan"]
[Black "Lunaticx"]
[Result "1/2-1/2"]
[WhiteElo "2608"]
[BlackElo "2979"]
[TimeControl "180+1"]
[EndTime "10:10:52 PDT"]
[Termination "Remíza dohodou"]

1. e4 {[%clk 0:03:00.9]} 1... e5 {[%clk 0:02:58.3]} 2. Nf3 {[%clk 0:03:00.6]}
2... Nc6 {[%clk 0:02:59]} 3. d4 {[%clk 0:02:59.4]} 3... exd4 {[%clk 0:02:58.5]}
4. Nxd4 {[%clk 0:02:59.7]} 4... Nf6 {[%clk 0:02:58.6]} 5. Nc3 {[%clk 0:02:58.5]}
5... Bb4 {[%clk 0:02:57.9]} 6. Nxc6 {[%clk 0:02:58.5]} 6... bxc6 {[%clk
0:02:57.8]} 7. Bd3 {[%clk 0:02:58.5]} 7... d5 {[%clk 0:02:55.2]} 8. exd5 {[%clk
0:02:58.1]} 8... O-O {[%clk 0:02:54.9]} 9. O-O {[%clk 0:02:57.6]} 9... cxd5
{[%clk 0:02:54.2]} 10. Bg5 {[%clk 0:02:55.3]} 10... c6 {[%clk 0:02:52.4]} 11.
Ne2 {[%clk 0:02:45.4]} 11... h6 {[%clk 0:02:47.3]} 12. Bh4 {[%clk 0:02:43.5]}
12... Be7 {[%clk 0:02:28.1]} 13. Nd4 {[%clk 0:02:42.7]} 13... Bd7 {[%clk
0:02:28]} 14. Nf5 {[%clk 0:02:40.9]} 14... Bxf5 {[%clk 0:02:25.8]} 15. Bxf5
{[%clk 0:02:40.4]} 15... Ne8 {[%clk 0:02:24.7]} 16. Bg3 {[%clk 0:02:34.9]} 16...
Bd6 {[%clk 0:02:24.5]} 17. Re1 {[%clk 0:02:27.5]} 17... Qf6 {[%clk 0:02:22.9]}
18. Bd7 {[%clk 0:02:19.5]} 18... Bxg3 {[%clk 0:02:17.6]} 19. hxg3 {[%clk
0:02:18.9]} 19... Rd8 {[%clk 0:02:15.7]} 20. Bxe8 {[%clk 0:02:13.3]} 20... Rfxe8
{[%clk 0:02:16.6]} 21. c3 {[%clk 0:02:10.5]} 21... Rxe1+ {[%clk 0:02:00.8]} 22.
Qxe1 {[%clk 0:02:10.2]} 22... c5 {[%clk 0:02:01.4]} 23. Rd1 {[%clk 0:02:08.1]}
23... a5 {[%clk 0:01:57.2]} 24. b3 {[%clk 0:01:55.1]} 24... Qc6 {[%clk
0:01:51.6]} 25. c4 {[%clk 0:01:48.1]} 25... d4 {[%clk 0:01:35.3]} 26. Qxa5
{[%clk 0:01:45.7]} 26... Ra8 {[%clk 0:01:35.2]} 27. Qd2 {[%clk 0:01:43.6]} 27...
Qa6 {[%clk 0:01:34.3]} 28. b4 {[%clk 0:01:19.6]} 28... Qxc4 {[%clk 0:01:22.8]}
29. bxc5 {[%clk 0:01:12.8]} 29... Qxc5 {[%clk 0:01:12.7]} 30. Qxd4 {[%clk
0:01:12.1]} 30... Qxd4 {[%clk 0:01:12.8]} 31. Rxd4 {[%clk 0:01:12.4]} 31... Rxa2
{[%clk 0:01:13.4]} 32. Rd8+ {[%clk 0:01:12.2]} 32... Kh7 {[%clk 0:01:13.4]} 33.
Rd7 {[%clk 0:01:12.5]} 33... Kg6 {[%clk 0:01:13.5]} 34. f3 {[%clk 0:01:11.9]}
34... h5 {[%clk 0:01:12.7]} 35. Kh2 {[%clk 0:01:11.2]} 35... Ra1 {[%clk
0:01:12.1]} 36. Rd6+ {[%clk 0:01:10.2]} 36... f6 {[%clk 0:01:12.2]} 37. Rd5
{[%clk 0:01:10.3]} 37... Kh6 {[%clk 0:01:12.1]} 38. Rd6 {[%clk 0:01:08.2]} 38...
Re1 {[%clk 0:01:11.2]} 39. Rc6 {[%clk 0:01:06.5]} 39... Rd1 {[%clk 0:01:10.8]}
40. Rb6 {[%clk 0:01:05.5]} 40... Rd5 {[%clk 0:01:10.6]} 41. Rc6 {[%clk
0:01:04.5]} 41... Kg5 {[%clk 0:01:10.5]} 42. Rc7 {[%clk 0:01:04.1]} 42... g6
{[%clk 0:01:10.3]} 43. Rc4 {[%clk 0:01:04]} 43... Ra5 {[%clk 0:01:09.1]} 44. Rb4
{[%clk 0:01:03.5]} 44... Kf5 {[%clk 0:01:08.7]} 45. g4+ {[%clk 0:01:00.8]} 45...
hxg4 {[%clk 0:01:06.8]} 46. Rxg4 {[%clk 0:01:00.5]} 46... g5 {[%clk 0:01:06.8]}
47. Rc4 {[%clk 0:01:00.3]} 47... Kg6 {[%clk 0:01:06.7]} 48. g4 {[%clk
0:00:56.1]} 48... Ra6 {[%clk 0:01:03.2]} 1/2-1/2

[Event "Betsys MČR v online bleskovém šachu 2021"]
[Site "Chess.com"]
[Date "2021.04.17"]
[Round "7"]
[White "Nimrod64"]
[Black "JJ95"]
[Result "1-0"]
[WhiteElo "2264"]
[BlackElo "2015"]
[TimeControl "180+1"]
[EndTime "10:10:53 PDT"]
[Termination "Uživatel Nimrod64 zvítězil matem"]

1. d4 {[%clk 0:03:00.9]} 1... d5 {[%clk 0:02:56.4]} 2. Nf3 {[%clk 0:03:01.8]}
2... Nf6 {[%clk 0:02:55.8]} 3. g3 {[%clk 0:03:02.7]} 3... g6 {[%clk 0:02:55.6]}
4. Bg2 {[%clk 0:03:03.6]} 4... Bg7 {[%clk 0:02:55.8]} 5. O-O {[%clk 0:03:04]}
5... e6 {[%clk 0:02:55.9]} 6. c4 {[%clk 0:03:04.5]} 6... O-O {[%clk 0:02:53.2]}
7. Nbd2 {[%clk 0:03:01.8]} 7... dxc4 {[%clk 0:02:50.9]} 8. Nxc4 {[%clk
0:03:00.4]} 8... c6 {[%clk 0:02:50.7]} 9. b3 {[%clk 0:02:59.4]} 9... Nbd7 {[%clk
0:02:50.9]} 10. Ba3 {[%clk 0:02:54.7]} 10... c5 {[%clk 0:02:34.1]} 11. dxc5
{[%clk 0:02:50.2]} 11... Ne4 {[%clk 0:02:13.3]} 12. Rc1 {[%clk 0:02:48.7]} 12...
Ndxc5 {[%clk 0:02:07.4]} 13. Qc2 {[%clk 0:02:46.6]} 13... f5 {[%clk 0:01:13.2]}
14. Rfd1 {[%clk 0:02:43.1]} 14... Qf6 {[%clk 0:00:52.9]} 15. Bb2 {[%clk
0:02:34.2]} 15... Qe7 {[%clk 0:00:46.6]} 16. Bxg7 {[%clk 0:02:28.5]} 16... Qxg7
{[%clk 0:00:43.6]} 17. Nce5 {[%clk 0:02:19.8]} 17... g5 {[%clk 0:00:29.1]} 18.
Nd3 {[%clk 0:02:17.9]} 18... Nxd3 {[%clk 0:00:20]} 19. exd3 {[%clk 0:02:13.9]}
19... Nf6 {[%clk 0:00:17.2]} 20. Ne5 {[%clk 0:02:11.5]} 20... f4 {[%clk
0:00:15.6]} 21. d4 {[%clk 0:02:10.1]} 21... Nd5 {[%clk 0:00:11.1]} 22. Qc5
{[%clk 0:01:57.9]} 22... fxg3 {[%clk 0:00:08.5]} 23. hxg3 {[%clk 0:01:51.5]}
23... b6 {[%clk 0:00:04.5]} 24. Qc6 {[%clk 0:01:47.9]} 24... Bb7 {[%clk
0:00:04.7]} 25. Qxe6+ {[%clk 0:01:46.7]} 25... Kh8 {[%clk 0:00:04.9]} 26. Bxd5
{[%clk 0:01:41.8]} 26... Rae8 {[%clk 0:00:05.3]} 27. Qd7 {[%clk 0:01:24.9]}
27... Qxd7 {[%clk 0:00:04.3]} 28. Nxd7 {[%clk 0:01:22.6]} 28... Bxd5 {[%clk
0:00:05.2]} 29. Nxf8 {[%clk 0:01:21.6]} 29... Rxf8 {[%clk 0:00:06.1]} 30. Rc7
{[%clk 0:01:18.9]} 30... Rf6 {[%clk 0:00:06]} 31. Re1 {[%clk 0:01:16.2]} 31...
Rf8 {[%clk 0:00:04.9]} 32. Ree7 {[%clk 0:01:14.4]} 32... h5 {[%clk 0:00:03.6]}
33. Rh7+ {[%clk 0:01:11.9]} 33... Kg8 {[%clk 0:00:03.3]} 34. Rcg7# {[%clk
0:01:12]} 1-0

[Event "Betsys MČR v online bleskovém šachu 2021"]
[Site "Chess.com"]
[Date "2021.04.17"]
[Round "7"]
[White "TomSedmihradsky"]
[Black "mayerrs"]
[Result "0-1"]
[WhiteElo "1465"]
[BlackElo "1866"]
[TimeControl "180+1"]
[EndTime "10:10:55 PDT"]
[Termination "Uživatel mayerrs zvítězil na čas"]

1. d4 {[%clk 0:03:00.9]} 1... g6 {[%clk 0:03:00.1]} 2. c4 {[%clk 0:02:59.8]}
2... Bg7 {[%clk 0:03:00.4]} 3. Nf3 {[%clk 0:02:56]} 3... b6 {[%clk 0:03:00.7]}
4. Nc3 {[%clk 0:02:55.4]} 4... Bb7 {[%clk 0:03:00.4]} 5. e4 {[%clk 0:02:54.4]}
5... e6 {[%clk 0:03:00.6]} 6. d5 {[%clk 0:02:47.1]} 6... exd5 {[%clk 0:02:56.3]}
7. Nxd5 {[%clk 0:02:36.9]} 7... Nf6 {[%clk 0:02:37]} 8. Bg5 {[%clk 0:02:25.3]}
8... h6 {[%clk 0:02:24.9]} 9. Bxf6 {[%clk 0:02:22.8]} 9... Bxf6 {[%clk
0:02:24.6]} 10. e5 {[%clk 0:02:21.9]} 10... Bg7 {[%clk 0:02:19.4]} 11. Qd4
{[%clk 0:01:53.9]} 11... O-O {[%clk 0:02:14.9]} 12. Bd3 {[%clk 0:01:31.2]} 12...
d6 {[%clk 0:02:09.9]} 13. Qf4 {[%clk 0:01:00.1]} 13... dxe5 {[%clk 0:01:48.7]}
14. Nxe5 {[%clk 0:00:41.9]} 14... Re8 {[%clk 0:01:41.3]} 15. Qxf7+ {[%clk
0:00:36.6]} 15... Kh8 {[%clk 0:01:26.3]} 16. O-O {[%clk 0:00:16.8]} 16... Rxe5
{[%clk 0:01:21]} 17. Nf4 {[%clk 0:00:13.4]} 17... Rg5 {[%clk 0:01:04.4]} 18.
Bxg6 {[%clk 0:00:05.4]} 18... Qf6 {[%clk 0:00:43.1]} 19. Qd7 {[%clk 0:00:01.2]}
19... Nxd7 {[%clk 0:00:41.2]} 0-1

[Event "Betsys MČR v online bleskovém šachu 2021"]
[Site "Chess.com"]
[Date "2021.04.17"]
[Round "7"]
[White "Dan1612"]
[Black "masodj"]
[Result "1-0"]
[WhiteElo "1989"]
[BlackElo "1726"]
[TimeControl "180+1"]
[EndTime "10:10:56 PDT"]
[Termination "Uživatel Dan1612 zvítězil po vzdání soupeře"]

1. e4 {[%clk 0:03:00.9]} 1... c5 {[%clk 0:02:59.5]} 2. Nf3 {[%clk 0:03:01]} 2...
Nc6 {[%clk 0:02:59.1]} 3. d4 {[%clk 0:03:01.5]} 3... cxd4 {[%clk 0:02:59.1]} 4.
Nxd4 {[%clk 0:03:02.1]} 4... Nf6 {[%clk 0:02:59.2]} 5. Nc3 {[%clk 0:03:02.6]}
5... g6 {[%clk 0:02:59.1]} 6. Be3 {[%clk 0:03:02]} 6... Bg7 {[%clk 0:02:59.6]}
7. Nxc6 {[%clk 0:03:01.9]} 7... bxc6 {[%clk 0:02:57.9]} 8. e5 {[%clk 0:03:02.5]}
8... Nd5 {[%clk 0:02:43.7]} 9. Nxd5 {[%clk 0:03:01.5]} 9... cxd5 {[%clk
0:02:44]} 10. Qxd5 {[%clk 0:03:00.6]} 10... Rb8 {[%clk 0:02:44.5]} 11. Bc4
{[%clk 0:02:28.3]} 11... O-O {[%clk 0:02:34.7]} 12. Bxa7 {[%clk 0:02:20.8]}
12... Bb7 {[%clk 0:02:30.2]} 13. Qd4 {[%clk 0:02:18]} 13... Qa5+ {[%clk
0:02:28.8]} 14. c3 {[%clk 0:02:12.1]} 14... Ra8 {[%clk 0:01:58.2]} 15. Bb6
{[%clk 0:02:09.9]} 15... Qxe5+ {[%clk 0:01:56.6]} 16. Qxe5 {[%clk 0:02:05.4]}
16... Bxe5 {[%clk 0:01:55.7]} 17. O-O {[%clk 0:02:05.9]} 17... d5 {[%clk
0:01:46.4]} 18. Be2 {[%clk 0:02:01.9]} 18... e6 {[%clk 0:01:44.8]} 19. a4 {[%clk
0:01:48.4]} 19... Bc6 {[%clk 0:01:38.1]} 20. a5 {[%clk 0:01:47.4]} 20... Rfb8
{[%clk 0:01:29.8]} 21. Rfc1 {[%clk 0:01:37.6]} 21... Bb7 {[%clk 0:01:25.1]} 22.
b4 {[%clk 0:01:33.2]} 22... Rc8 {[%clk 0:01:17.2]} 23. a6 {[%clk 0:01:13.5]}
23... Bc6 {[%clk 0:01:14.1]} 24. b5 {[%clk 0:01:09.8]} 24... Be8 {[%clk
0:01:12.9]} 25. Bd4 {[%clk 0:01:10.3]} 25... Bd6 {[%clk 0:01:10.7]} 26. b6
{[%clk 0:01:08.8]} 26... e5 {[%clk 0:01:02.5]} 27. Be3 {[%clk 0:00:58.1]} 27...
Bc6 {[%clk 0:01:02.4]} 28. b7 {[%clk 0:00:55.3]} 28... Bxb7 {[%clk 0:01:01]} 29.
axb7 {[%clk 0:00:55.2]} 29... Rxa1 {[%clk 0:01:00.1]} 30. Rxa1 {[%clk
0:00:54.4]} 30... Rxc3 {[%clk 0:00:59.2]} 31. Ra8+ {[%clk 0:00:51.7]} 31... Kg7
{[%clk 0:00:58.6]} 32. b8=Q {[%clk 0:00:46]} 32... Bxb8 {[%clk 0:00:57.3]} 33.
Rxb8 {[%clk 0:00:46.7]} 33... d4 {[%clk 0:00:57.5]} 34. Bg5 {[%clk 0:00:41.3]}
34... f6 {[%clk 0:00:56.4]} 35. Rb7+ {[%clk 0:00:37]} 35... Kg8 {[%clk
0:00:53.9]} 36. Bh6 {[%clk 0:00:33.6]} 36... Rc1+ {[%clk 0:00:50.2]} 37. Bxc1
{[%clk 0:00:32.3]} 1-0

[Event "Betsys MČR v online bleskovém šachu 2021"]
[Site "Chess.com"]
[Date "2021.04.17"]
[Round "7"]
[White "jsebesta"]
[Black "Staci_fiknout_Navara_Plat"]
[Result "0-1"]
[WhiteElo "1646"]
[BlackElo "1947"]
[TimeControl "180+1"]
[EndTime "10:10:57 PDT"]
[Termination "Uživatel Staci_fiknout_Navara_Plat zvítězil po vzdání soupeře"]

1. e4 {[%clk 0:03:00.9]} 1... d5 {[%clk 0:02:59.7]} 2. exd5 {[%clk 0:03:00.3]}
2... Nf6 {[%clk 0:02:59.3]} 3. Nf3 {[%clk 0:02:58.7]} 3... Nxd5 {[%clk
0:02:58.8]} 4. d4 {[%clk 0:02:58.7]} 4... c6 {[%clk 0:02:59.2]} 5. Bd3 {[%clk
0:02:47.9]} 5... Bg4 {[%clk 0:02:59]} 6. O-O {[%clk 0:02:43.8]} 6... e6 {[%clk
0:02:58.8]} 7. a3 {[%clk 0:02:32]} 7... Be7 {[%clk 0:02:58.9]} 8. c4 {[%clk
0:02:28.3]} 8... Nf6 {[%clk 0:02:58.2]} 9. Be3 {[%clk 0:02:20.8]} 9... Nbd7
{[%clk 0:02:58.2]} 10. Nbd2 {[%clk 0:02:15.6]} 10... Nb6 {[%clk 0:02:56.8]} 11.
Ne4 {[%clk 0:02:09.1]} 11... Nxe4 {[%clk 0:02:47.5]} 12. Bxe4 {[%clk 0:02:09.2]}
12... O-O {[%clk 0:02:47.4]} 13. Qc2 {[%clk 0:02:03.1]} 13... Bxf3 {[%clk
0:02:46.2]} 14. Bxf3 {[%clk 0:02:00]} 14... Qc7 {[%clk 0:02:41.2]} 15. b3 {[%clk
0:01:50.5]} 15... Rad8 {[%clk 0:02:39.3]} 16. a4 {[%clk 0:01:48.1]} 16... a6
{[%clk 0:02:38.9]} 17. a5 {[%clk 0:01:47.9]} 17... Na8 {[%clk 0:02:38.8]} 18.
Qe4 {[%clk 0:01:39.6]} 18... Rd7 {[%clk 0:02:34.8]} 19. c5 {[%clk 0:01:37.2]}
19... Qd8 {[%clk 0:02:30]} 20. Rad1 {[%clk 0:01:26.3]} 20... Nc7 {[%clk
0:02:29]} 21. Qg4 {[%clk 0:01:12.7]} 21... Bf6 {[%clk 0:02:25.2]} 22. Be4 {[%clk
0:00:48]} 22... Nd5 {[%clk 0:02:14.7]} 23. Bxd5 {[%clk 0:00:47.4]} 23... Rxd5
{[%clk 0:02:13]} 24. Rd2 {[%clk 0:00:37.2]} 24... Qxa5 {[%clk 0:02:11.3]} 25.
Rfd1 {[%clk 0:00:34.7]} 25... g6 {[%clk 0:02:00.9]} 26. h4 {[%clk 0:00:34.9]}
26... Rfd8 {[%clk 0:01:58.3]} 27. Qh3 {[%clk 0:00:17.5]} 27... Qb4 {[%clk
0:01:51.1]} 28. g4 {[%clk 0:00:16]} 28... Bxd4 {[%clk 0:01:46.2]} 29. Bxd4
{[%clk 0:00:10.9]} 29... Rxd4 {[%clk 0:01:45.9]} 30. Rxd4 {[%clk 0:00:11.3]}
30... Rxd4 {[%clk 0:01:45.7]} 31. Rxd4 {[%clk 0:00:12]} 31... Qxd4 {[%clk
0:01:45.9]} 32. Qf3 {[%clk 0:00:12.6]} 32... Qxc5 {[%clk 0:01:38.6]} 33. Qf6
{[%clk 0:00:08.9]} 33... h5 {[%clk 0:01:22.1]} 34. g5 {[%clk 0:00:08.2]} 34...
Qf5 {[%clk 0:01:17]} 35. Qd8+ {[%clk 0:00:07.4]} 35... Kg7 {[%clk 0:01:17.3]}
36. Qd4+ {[%clk 0:00:07.4]} 36... e5 {[%clk 0:01:16.8]} 37. Qd6 {[%clk
0:00:06.1]} 0-1

[Event "Betsys MČR v online bleskovém šachu 2021"]
[Site "Chess.com"]
[Date "2021.04.17"]
[Round "7"]
[White "SamikGame"]
[Black "TCTCGTGCTATG"]
[Result "0-1"]
[WhiteElo "1658"]
[BlackElo "1923"]
[TimeControl "180+1"]
[EndTime "10:10:59 PDT"]
[Termination "Uživatel TCTCGTGCTATG zvítězil po vzdání soupeře"]

1. e4 {[%clk 0:03:00.9]} 1... e5 {[%clk 0:02:59.2]} 2. Nf3 {[%clk 0:02:54.2]}
2... Nc6 {[%clk 0:02:56.4]} 3. c3 {[%clk 0:02:52.9]} 3... Nf6 {[%clk 0:02:54.1]}
4. d4 {[%clk 0:02:50.8]} 4... exd4 {[%clk 0:02:52.2]} 5. e5 {[%clk 0:02:50]}
5... Ng8 {[%clk 0:02:43.6]} 6. cxd4 {[%clk 0:02:45.4]} 6... d5 {[%clk
0:02:43.4]} 7. Nc3 {[%clk 0:02:42.1]} 7... Be6 {[%clk 0:02:40.6]} 8. Bb5 {[%clk
0:02:31.6]} 8... Ne7 {[%clk 0:02:38.6]} 9. O-O {[%clk 0:02:26.3]} 9... g6 {[%clk
0:02:38.6]} 10. h3 {[%clk 0:02:21.4]} 10... Bg7 {[%clk 0:02:37.9]} 11. Bg5
{[%clk 0:02:17]} 11... O-O {[%clk 0:02:37.4]} 12. Bxc6 {[%clk 0:02:14.2]} 12...
bxc6 {[%clk 0:02:36.4]} 13. Qd2 {[%clk 0:02:10.9]} 13... Re8 {[%clk 0:02:33.1]}
14. Rac1 {[%clk 0:02:04.2]} 14... Rb8 {[%clk 0:02:32.2]} 15. b3 {[%clk
0:01:59.9]} 15... Qd7 {[%clk 0:02:31.3]} 16. Na4 {[%clk 0:01:54]} 16... Qc8
{[%clk 0:02:26.6]} 17. Nc5 {[%clk 0:01:48]} 17... Nf5 {[%clk 0:02:11.8]} 18.
Nxe6 {[%clk 0:01:37.3]} 18... Qxe6 {[%clk 0:02:10.8]} 19. Qa5 {[%clk 0:01:31.7]}
19... h6 {[%clk 0:01:56.2]} 20. Bf4 {[%clk 0:01:22]} 20... Rb7 {[%clk
0:01:49.1]} 21. Qa6 {[%clk 0:01:16.4]} 21... Rb6 {[%clk 0:01:31]} 22. Qxa7
{[%clk 0:01:12.7]} 22... Qd7 {[%clk 0:01:31]} 23. Qa4 {[%clk 0:01:02.4]} 23...
Reb8 {[%clk 0:01:27.6]} 24. Bd2 {[%clk 0:00:50.4]} 24... Kh7 {[%clk 0:01:14.2]}
25. Rfe1 {[%clk 0:00:43]} 25... Ne7 {[%clk 0:01:12.1]} 26. b4 {[%clk 0:00:35]}
26... Qc8 {[%clk 0:01:10.8]} 27. Rc5 {[%clk 0:00:23.6]} 27... Ra8 {[%clk
0:01:09.4]} 28. Qc2 {[%clk 0:00:17.3]} 28... Rba6 {[%clk 0:01:03.3]} 29. Ra1
{[%clk 0:00:14.4]} 29... Ra3 {[%clk 0:00:58.4]} 30. Rc4 {[%clk 0:00:11.7]} 30...
dxc4 {[%clk 0:00:52.5]} 0-1